fUST/lending_fUST_20250627
["ID","MTS","AMOUNT","RATE_DAILY","PERIOD"]
[368021489,1750996239211,-460.0,0.00019178,2]
[368021490,1750996239221,-460.0,0.00019178,2]
[368021491,1750996239230,-460.0,0.00019178,2]
[368021492,1750996239240,-468.88426293,0.00019178,2]
[368021493,1750996239249,-460.0,0.00019178,2]
[368021494,1750996239258,-460.0,0.00019178,2]
[368021495,1750996239267,-771.04,0.00019178,2]
[368021496,1750996239277,-460.0,0.00019178,2]
[368021497,1750996239286,-460.0,0.00019178,2]
[368021498,1750996239296,-304.34219222,0.00019178,2]
[368021499,1750996239306,-460.0,0.00019178,2]
[368021500,1750996239315,-906.39,0.00019178,2]
[368021501,1750996239324,-460.0,0.00019178,2]
[368021502,1750996239335,-460.0,0.00019178,2]
[368021503,1750996239344,-460.0,0.00019178,2]
[368021504,1750996239354,-460.0,0.00019178,2]
[368021505,1750996239363,-460.0,0.00019178,2]
[368021506,1750996239373,-804.9,0.00019178,2]
[368021507,1750996239382,-460.0,0.00019178,2]
[368021508,1750996239391,-500.0,0.00019178,2]
[368021509,1750996239402,-500.0,0.00019178,2]
[368021510,1750996239411,-500.0,0.00019178,2]
[368021511,1750996239420,-500.0,0.00019178,2]
[368021512,1750996239430,-500.0,0.00019178,2]
[368021513,1750996239439,-507.26769134,0.00019178,2]
[368021514,1750996239449,-460.0,0.00019178,2]
[368021515,1750996239458,-463.73984392,0.00019178,2]
[368021516,1750996239467,-1327.84,0.00019178,2]
[368021517,1750996239476,-460.0,0.00019178,2]
[368021518,1750996239486,-460.0,0.00019178,2]
[368021519,1750996239495,-460.0,0.00019178,2]
[368021520,1750996239504,-460.0,0.00019178,2]
[368021521,1750996239513,-1004.42736303,0.00019178,2]
[368021522,1750996239522,-460.0,0.00019178,2]
[368021523,1750996239531,-440.0,0.00019178,2]
[368021524,1750996239541,-460.0,0.00019178,2]
[368021525,1750996239550,-460.0,0.00019178,2]
[368021526,1750996239559,-460.0,0.00019178,2]
[368021527,1750996239568,-4263.33,0.00019178,2]
[368021528,1750996239578,-460.0,0.00019178,2]
[368021529,1750996239588,-460.0,0.00019178,2]
[368021530,1750996239597,-460.0,0.00019178,2]
[368021531,1750996239607,-460.0,0.00019178,2]
[368021532,1750996239616,-250.82572444,0.00019178,2]
[368021533,1750996239626,-436.57047159,0.00019178,2]
[368021534,1750996239636,-460.0,0.00019178,2]
[368021535,1750996239645,-355.53101893,0.00019178,2]
[368021536,1750996239655,-460.0,0.00019178,2]
[368021537,1750996239664,-460.0,0.00019178,2]
[368021538,1750996239673,-400.0,0.00019178,2]
[368021539,1750996239683,-460.0,0.00019178,2]
[368021540,1750996239692,-460.0,0.00019178,2]
[368021541,1750996239701,-465.32064229,0.00019178,2]
[368021542,1750996239711,-460.0,0.00019178,2]
[368021543,1750996239720,-460.0,0.00019178,2]
[368021544,1750996239729,-2077.85,0.00019178,2]
[368021545,1750996239739,-460.0,0.00019178,2]
[368021546,1750996239748,-460.0,0.00019178,2]
[368021547,1750996239757,-521.91879321,0.00019178,2]
[368021548,1750996239766,-460.0,0.00019178,2]
[368021549,1750996239776,-460.0,0.00019178,2]
[368021550,1750996239785,-460.0,0.00019178,2]
[368021551,1750996239795,-460.0,0.00019178,2]
[368021552,1750996239804,-460.0,0.00019178,2]
[368021553,1750996239813,-460.0,0.00019178,2]
[368021554,1750996239822,-460.0,0.00019178,2]
[368021555,1750996239831,-460.0,0.00019178,2]
[368021556,1750996239840,-460.0,0.00019178,2]
[368021557,1750996239850,-231.65899485,0.00019178,2]
[368021558,1750996239859,-460.0,0.00019178,2]
[368021559,1750996239869,-274.07514049,0.00019178,2]
[368021560,1750996239878,-460.0,0.00019178,2]
[368021561,1750996239888,-460.0,0.00019178,2]
[368021562,1750996239897,-460.0,0.00019178,2]
[368021563,1750996239907,-874.94,0.00019178,2]
[368021564,1750996239916,-460.0,0.00019178,2]
[368021565,1750996239925,-333.9552254,0.00019178,2]
[368021566,1750996239935,-460.0,0.00019178,2]
[368021567,1750996239944,-345.55349271,0.00019178,2]
[368021568,1750996239953,-460.0,0.00019178,2]
[368021569,1750996239962,-460.0,0.00019178,2]
[368021570,1750996239972,-460.0,0.00019178,2]
[368021571,1750996239981,-500.0,0.00019178,2]
[368021572,1750996239990,-500.0,0.00019178,2]
[368021573,1750996240003,-689.65,0.00019178,2]
[368021574,1750996240013,-500.0,0.00019178,2]
[368021575,1750996240022,-500.0,0.00019178,2]
[368021576,1750996240031,-460.0,0.00019178,2]
[368021577,1750996240042,-500.0,0.00019178,2]
[368021578,1750996240051,-500.0,0.00019178,2]
[368021579,1750996240061,-460.0,0.00019178,2]
[368021580,1750996240070,-500.0,0.00019178,2]
[368021581,1750996240081,-2347.23,0.00019178,2]
[368021582,1750996240090,-460.0,0.00019178,2]
[368021583,1750996240100,-500.0,0.00019178,2]
[368021584,1750996240109,-500.0,0.00019178,2]
[368021585,1750996240118,-500.0,0.00019178,2]
[368021586,1750996240128,-460.0,0.00019178,2]
[368021587,1750996240137,-500.0,0.00019178,2]
[368021588,1750996240146,-460.0,0.00019178,2]
[368021589,1750996240157,-500.0,0.00019178,2]
[368021590,1750996240166,-500.0,0.00019178,2]
[368021591,1750996240176,-469.34,0.00019178,2]
[368021592,1750996240185,-509.53751119,0.00019178,2]
[368021593,1750996240195,-435.52758798,0.00019178,2]
[368021594,1750996240204,-460.0,0.00019178,2]
[368021595,1750996240214,-439.66123219,0.00019178,2]
[368021596,1750996240223,-460.0,0.00019178,2]
[368021597,1750996240233,-460.0,0.00019178,2]
[368021598,1750996240242,-500.0,0.00019178,2]
[368021599,1750996240252,-500.0,0.00019351,2]
[368021600,1750996240261,-500.0,0.00019451,2]
[368021601,1750996240272,-500.0,0.00019451,2]
[368021602,1750996240281,-500.0,0.00019451,2]
[368021603,1750996240290,-500.0,0.00019451,2]
[368021604,1750996240300,-236.88,0.00019451,2]
[368021605,1750996240309,-465.95861752,0.00019452,2]
[368021606,1750996240318,-469.19057444,0.00019452,2]
[368021607,1750996240328,-522.03314522,0.00019452,2]
[368021608,1750996240337,-470.95042531,0.00019452,2]
[368021609,1750996240347,-460.0,0.00019452,2]
[368021610,1750996240356,-460.0,0.00019452,2]
[368021612,1750996240365,-460.0,0.00019452,2]
[368021613,1750996240375,-442.47828112,0.00019452,2]
[368021614,1750996240386,-460.0,0.00019452,2]
[368021615,1750996240395,-460.0,0.00019452,2]
[368021616,1750996240405,-460.0,0.00019452,2]
[368021617,1750996240414,-251.98781083,0.00019452,2]
[368021618,1750996240423,-452.414988,0.00019452,2]
[368021619,1750996240432,-460.0,0.00019452,2]
[368021620,1750996240442,-460.0,0.00019452,2]
[368021621,1750996240451,-460.0,0.00019452,2]
[368021622,1750996240461,-465.42713338,0.00019452,2]
[368021623,1750996240470,-460.0,0.00019452,2]
[368021624,1750996240480,-427.84191376,0.00019452,2]
[368021625,1750996240489,-341.38539279,0.00019452,2]
[368021627,1750996240498,-444.38118601,0.00019452,2]
[368021628,1750996240507,-430.0,0.00019452,2]
[368021629,1750996240516,-439.96508704,0.00019452,2]
[368021630,1750996240525,-460.0,0.00019452,2]
[368021631,1750996240534,-461.95704951,0.00019452,2]
[368021632,1750996240545,-482.658,0.00019452,2]
[368021633,1750996240555,-460.0,0.00019452,2]
[368021635,1750996240565,-215.19,0.00019452,2]
[368021636,1750996240574,-373.21352027,0.00019452,2]
[368021638,1750996240583,-460.0,0.00019452,2]
[368021640,1750996240592,-460.0,0.00019452,2]
[368021642,1750996240601,-477.42,0.00019452,2]
[368021644,1750996240610,-460.0,0.00019452,2]
[368021646,1750996240619,-460.0,0.00019452,2]
[368021648,1750996240628,-462.94,0.00019452,2]
[368021649,1750996240637,-360.0,0.00019452,2]
[368021650,1750996240647,-460.0,0.00019452,2]
[368021651,1750996240656,-460.0,0.00019452,2]
[368021652,1750996240665,-208.56487203,0.00019452,2]
[368021653,1750996240675,-460.0,0.00019452,2]
[368021654,1750996240684,-460.0,0.00019452,2]
[368021655,1750996240694,-460.0,0.00019452,2]
[368021657,1750996240703,-460.0,0.00019452,2]
[368021659,1750996240712,-460.0,0.00019452,2]
[368021661,1750996240721,-405.39568579,0.00019452,2]
[368021662,1750996240733,-304.81,0.00019452,2]
[368021664,1750996240742,-527.01542089,0.00019452,2]
[368021666,1750996240751,-460.0,0.00019452,2]
[368021668,1750996240761,-460.0,0.00019452,2]
[368021670,1750996240770,-196.00646806,0.00019452,2]
[368021672,1750996240780,-460.0,0.00019452,2]
[368021674,1750996240788,-460.0,0.00019452,2]
[368021676,1750996240799,-460.0,0.00019452,2]
[368021678,1750996240807,-290.83881185,0.00019452,2]
[368021680,1750996240817,-460.0,0.00019452,2]
[368021682,1750996240827,-460.0,0.00019452,2]
[368021684,1750996240836,-460.0,0.00019452,2]
[368021686,1750996240845,-460.0,0.00019452,2]
[368021688,1750996240856,-460.0,0.00019452,2]
[368021690,1750996240865,-500.0,0.00019452,2]
[368021692,1750996240875,-545.78860857,0.00019452,2]
[368021694,1750996240884,-583.22,0.00019452,2]
[368021695,1750996240894,-460.0,0.00019452,2]
[368021696,1750996240904,-532.07,0.00019452,2]
[368021697,1750996240913,-460.0,0.00019452,2]
[368021698,1750996240922,-460.0,0.00019452,2]
[368021700,1750996240932,-460.0,0.00019452,2]
[368021701,1750996240941,-460.0,0.00019452,2]
[368021702,1750996240950,-460.0,0.00019452,2]
[368021703,1750996240960,-229.42541191,0.00019452,2]
[368021704,1750996240969,-460.0,0.00019452,2]
[368021705,1750996240978,-460.0,0.00019452,2]
[368021706,1750996240987,-460.0,0.00019452,2]
[368021707,1750996241000,-460.0,0.00019452,2]
[368021708,1750996241010,-466.00761037,0.00019452,2]
[368021709,1750996241019,-460.0,0.00019452,2]
[368021710,1750996241028,-522.64507979,0.00019452,2]
[368021711,1750996241039,-460.0,0.00019452,2]
[368021712,1750996241048,-460.0,0.00019452,2]
[368021713,1750996241058,-463.97765868,0.00019452,2]
[368021714,1750996241068,-473.28163851,0.00019452,2]
[368021715,1750996241078,-432.10861023,0.00019452,2]
[368021716,1750996241087,-460.0,0.00019452,2]
[368021717,1750996241096,-460.0,0.00019452,2]
[368021718,1750996241106,-424.51351515,0.00019452,2]
[368021719,1750996241115,-460.0,0.00019452,2]
[368021720,1750996241126,-460.0,0.00019452,2]
[368021721,1750996241135,-460.0,0.00019452,2]
[368021722,1750996241144,-460.0,0.00019452,2]
[368021723,1750996241154,-460.0,0.00019452,2]
[368021724,1750996241163,-156.95776634,0.00019452,2]
[368021725,1750996241172,-460.0,0.00019452,2]
[368021726,1750996241181,-460.0,0.00019452,2]
[368021727,1750996241190,-460.0,0.00019452,2]
[368021728,1750996241199,-460.0,0.00019452,2]
[368021729,1750996241209,-460.0,0.00019452,2]
[368021730,1750996241218,-460.0,0.00019452,2]
[368021731,1750996241227,-460.0,0.00019452,2]
[368021732,1750996241236,-460.0,0.00019452,2]
[368021733,1750996241245,-460.0,0.00019452,2]
[368021734,1750996241255,-629.94,0.00019452,2]
[368021735,1750996241264,-460.0,0.00019452,2]
[368021736,1750996241274,-393.85665487,0.00019452,2]
[368021737,1750996241402,-460.0,0.00019452,2]
[368021738,1750996241413,-460.0,0.00019452,2]
[368021739,1750996241423,-460.0,0.00019452,2]
[368021740,1750996241432,-460.0,0.00019452,2]
[368021741,1750996241441,-460.0,0.00019452,2]
[368021742,1750996241451,-460.0,0.00019452,2]
[368021743,1750996241460,-460.0,0.00019452,2]
[368021744,1750996241469,-460.0,0.00019452,2]
[368021745,1750996241478,-460.0,0.00019452,2]
[368021746,1750996241488,-446.20317163,0.00019452,2]
[368021747,1750996241498,-460.0,0.00019452,2]
[368021748,1750996241507,-460.0,0.00019452,2]
[368021749,1750996241518,-460.0,0.00019452,2]
[368021750,1750996241527,-460.0,0.00019452,2]
[368021751,1750996241537,-460.0,0.00019452,2]
[368021752,1750996241546,-441.84829069,0.00019452,2]
[368021753,1750996241556,-460.0,0.00019452,2]
[368021754,1750996241565,-369.70368793,0.00019452,2]
[368021755,1750996241573,-1114.1,0.00019452,2]
[368021756,1750996241582,-578.65,0.00019452,2]
[368021757,1750996241591,-485.5017604,0.00019452,2]
[368021758,1750996241601,-461.37322184,0.00019452,2]
[368021759,1750996241611,-460.0,0.00019452,2]
[368021760,1750996241622,-460.0,0.00019452,2]
[368021761,1750996241631,-460.0,0.00019452,2]
[368021762,1750996241640,-460.0,0.00019452,2]
[368021763,1750996241649,-453.16372166,0.00019452,2]
[368021764,1750996241659,-460.0,0.00019452,2]
[368021765,1750996241670,-460.0,0.00019452,2]
[368021766,1750996241680,-194.01649872,0.00019452,2]
[368021767,1750996241690,-460.0,0.00019452,2]
[368021768,1750996241700,-460.0,0.00019452,2]
[368021769,1750996241710,-460.0,0.00019452,2]
[368021770,1750996241719,-460.0,0.00019452,2]
[368021771,1750996241730,-460.0,0.00019452,2]
[368021772,1750996241739,-427.93207997,0.00019452,2]
[368021773,1750996241750,-460.0,0.00019452,2]
[368021774,1750996241760,-460.0,0.00019452,2]
[368021775,1750996241770,-460.0,0.00019452,2]
[368021776,1750996241779,-460.0,0.00019452,2]
[368021777,1750996241790,-460.0,0.00019452,2]
[368021778,1750996241800,-460.0,0.00019452,2]
[368021779,1750996241810,-627.64014139,0.00019452,2]
[368021780,1750996241820,-463.1194358,0.00019452,2]
[368021781,1750996241829,-460.0,0.00019452,2]
[368021782,1750996241839,-490.44846432,0.00019452,2]
[368021783,1750996241848,-460.0,0.00019452,2]
[368021784,1750996241859,-460.0,0.00019452,2]
[368021785,1750996241869,-460.0,0.00019452,2]
[368021786,1750996241878,-460.0,0.00019452,2]
[368021787,1750996241887,-460.78943362,0.00019452,2]
[368021788,1750996241899,-501.78113916,0.00019452,2]
[368021789,1750996241908,-460.0,0.00019452,2]
[368021790,1750996241918,-462.95870116,0.00019452,2]
[368021791,1750996241927,-460.0,0.00019452,2]
[368021792,1750996241936,-330.10578544,0.00019452,2]
[368021793,1750996241946,-264.87176775,0.00019452,2]
[368021794,1750996241955,-316.86998609,0.00019452,2]
[368021795,1750996241964,-862.68,0.00019452,2]
[368021796,1750996241974,-231.65963267,0.00019452,2]
[368021797,1750996242193,-370.04966296,0.00019452,2]
[368021798,1750996242204,-460.0,0.00019452,2]
[368021799,1750996242214,-460.0,0.00019452,2]
[368021800,1750996242223,-460.0,0.00019452,2]
[368021801,1750996242233,-290.21730731,0.00019452,2]
[368021802,1750996242246,-173.38486741,0.00019452,2]
[368021803,1750996242256,-465.70998,0.00019452,2]
[368021804,1750996242266,-460.0,0.00019452,2]
[368021805,1750996242275,-440.49483576,0.00019452,2]
[368021806,1750996242285,-460.0,0.00019452,2]
[368021807,1750996242293,-460.0,0.00019452,2]
[368021808,1750996242302,-460.0,0.00019452,2]
[368021809,1750996242312,-502.67,0.00019452,2]
[368021810,1750996242322,-460.0,0.00019452,2]
[368021811,1750996242331,-460.0,0.00019452,2]
[368021812,1750996242341,-460.0,0.00019452,2]
[368021813,1750996242353,-460.0,0.00019452,2]
[368021814,1750996242362,-460.0,0.00019452,2]
[368021815,1750996242372,-460.0,0.00019452,2]
[368021816,1750996242381,-460.0,0.00019452,2]
[368021817,1750996242391,-460.0,0.00019452,2]
[368021818,1750996242400,-460.0,0.00019452,2]
[368021819,1750996242410,-460.0,0.00019452,2]
[368021820,1750996242419,-180.94503726,0.00019452,2]
[368021821,1750996242431,-228.03193443,0.00019452,2]
[368021822,1750996242441,-460.0,0.00019452,2]
[368021823,1750996242450,-49.10806557,0.00019452,2]
[368021824,1750996242463,-410.89193443,0.00019452,2]
[368021825,1750996242474,-460.0,0.00019452,2]
[368021826,1750996242484,-10.57420453,0.00019452,2]
[368021827,1750996242970,-729.18,0.00019168,3]
[368021828,1750996242981,-460.0,0.00019178,2]
[368021829,1750996242990,-460.0,0.00019178,2]
[368021830,1750996243004,-460.0,0.00019178,2]
[368021831,1750996243013,-461.19956359,0.00019178,2]
[368021832,1750996243022,-460.0,0.00019178,2]
[368021833,1750996243031,-449.42579547,0.00019452,2]
[368021834,1750996243041,-465.27028143,0.00019452,2]
[368021835,1750996243050,-581.07853164,0.00019452,2]
[368021836,1750996243060,-460.0,0.00019452,2]
[368021837,1750996243070,-440.47076089,0.00019452,2]
[368021838,1750996243079,-460.0,0.00019452,2]
[368021839,1750996243089,-460.0,0.00019452,2]
[368021840,1750996243099,-460.0,0.00019452,2]
[368021841,1750996243108,-352.15885599,0.00019452,2]
[368021842,1750996243118,-460.0,0.00019452,2]
[368021843,1750996243127,-460.0,0.00019452,2]
[368021844,1750996243137,-460.0,0.00019452,2]
[368021845,1750996243146,-460.0,0.00019452,2]
[368021846,1750996243156,-460.0,0.00019452,2]
[368021847,1750996243165,-460.0,0.00019452,2]
[368021848,1750996243175,-460.0,0.00019452,2]
[368021849,1750996243185,-460.0,0.00019452,2]
[368021850,1750996243194,-460.0,0.00019452,2]
[368021851,1750996243203,-460.0,0.00019452,2]
[368021852,1750996243213,-460.0,0.00019452,2]
[368021853,1750996243222,-443.76641053,0.00019452,2]
[368021854,1750996243231,-460.0,0.00019452,2]
[368021855,1750996243241,-832.18,0.00019452,2]
[368021856,1750996243250,-745.34,0.00019452,2]
[368021857,1750996243260,-464.71042299,0.00019452,2]
[368021858,1750996243269,-460.0,0.00019452,2]
[368021859,1750996243279,-469.38909669,0.00019452,2]
[368021860,1750996243288,-460.0,0.00019452,2]
[368021861,1750996243298,-1599.49,0.00019452,2]
[368021862,1750996243307,-460.0,0.00019452,2]
[368021864,1750996243316,-460.0,0.00019452,2]
[368021866,1750996243326,-460.0,0.00019452,2]
[368021868,1750996243335,-460.0,0.00019452,2]
[368021870,1750996243344,-380.0,0.00019452,2]
[368021872,1750996243354,-460.0,0.00019452,2]
[368021873,1750996243364,-460.0,0.00019452,2]
[368021874,1750996243374,-460.0,0.00019452,2]
[368021875,1750996243383,-460.0,0.00019452,2]
[368021876,1750996243393,-460.0,0.00019452,2]
[368021877,1750996243402,-460.0,0.00019452,2]
[368021878,1750996243413,-460.0,0.00019452,2]
[368021879,1750996243422,-460.0,0.00019452,2]
[368021880,1750996243432,-460.0,0.00019452,2]
[368021881,1750996243441,-460.0,0.00019452,2]
[368021882,1750996243450,-465.78733529,0.00019452,2]
[368021883,1750996243460,-460.0,0.00019452,2]
[368021885,1750996243470,-460.0,0.00019452,2]
[368021886,1750996243479,-460.54665427,0.00019452,2]
[368021887,1750996243488,-477.12189403,0.00019452,2]
[368021888,1750996243497,-460.0,0.00019452,2]
[368021889,1750996243506,-468.95977601,0.00019452,2]
[368021890,1750996243515,-460.0,0.00019452,2]
[368021891,1750996243524,-460.0,0.00019452,2]
[368021892,1750996243534,-460.0,0.00019452,2]
[368021893,1750996243543,-358.87891181,0.00019452,2]
[368021894,1750996243552,-606.6,0.00019452,2]
[368021895,1750996243561,-460.0,0.00019452,2]
[368021896,1750996243571,-465.93686333,0.00019452,2]
[368021898,1750996243580,-414.20383321,0.00019452,2]
[368021899,1750996243591,-468.09120899,0.00019452,2]
[368021900,1750996243600,-460.0,0.00019452,2]
[368021901,1750996243609,-460.0,0.00019452,2]
[368021902,1750996243619,-1743.41,0.00019452,2]
[368021903,1750996243628,-469.60422701,0.00019452,2]
[368021904,1750996243639,-460.0,0.00019452,2]
[368021905,1750996243650,-460.0,0.00019452,2]
[368021906,1750996243660,-1732.43,0.00019452,2]
[368021907,1750996243670,-1592.32,0.00019452,2]
[368021908,1750996243679,-460.0,0.00019452,2]
[368021909,1750996243688,-460.0,0.00019452,2]
[368021910,1750996243697,-460.0,0.00019452,2]
[368021911,1750996243707,-460.0,0.00019452,2]
[368021912,1750996243717,-926.69,0.00019452,2]
[368021913,1750996243726,-581.04,0.00019452,2]
[368021914,1750996243735,-436.93742698,0.00019452,2]
[368021915,1750996243745,-2615.58,0.00019452,2]
[368021916,1750996243755,-460.0,0.00019452,2]
[368021917,1750996243765,-460.0,0.00019452,2]
[368021918,1750996243774,-460.0,0.00019452,2]
[368021919,1750996243783,-460.0,0.00019452,2]
[368021921,1750996243793,-414.96475332,0.00019452,2]
[368021923,1750996243803,-498.1656866,0.00019452,2]
[368021926,1750996243812,-460.0,0.00019452,2]
[368021928,1750996243821,-541.92,0.00019452,2]
[368021930,1750996243830,-460.0,0.00019452,2]
[368021932,1750996243840,-460.0,0.00019452,2]
[368021933,1750996243849,-460.0,0.00019452,2]
[368021934,1750996243858,-460.0,0.00019452,2]
[368021935,1750996243867,-460.0,0.00019452,2]
[368021936,1750996243876,-460.0,0.00019452,2]
[368021937,1750996243886,-460.0,0.00019452,2]
[368021938,1750996243896,-460.0,0.00019452,2]
[368021939,1750996243905,-460.0,0.00019452,2]
[368021940,1750996243915,-460.0,0.00019452,2]
[368021941,1750996243924,-460.0,0.00019452,2]
[368021942,1750996243933,-460.0,0.00019452,2]
[368021943,1750996243943,-1580.01,0.00019452,2]
[368021944,1750996243952,-948.51,0.00019452,2]
[368021945,1750996243961,-460.0,0.00019452,2]
[368021946,1750996243970,-434.43435421,0.00019452,2]
[368021947,1750996243979,-463.7672001,0.00019452,2]
[368021948,1750996243989,-460.0,0.00019452,2]
[368021949,1750996244001,-457.41079533,0.00019452,2]
[368021950,1750996244010,-460.0,0.00019452,2]
[368021951,1750996244145,-442.78848297,0.00019452,2]
[368021952,1750996244155,-462.99374069,0.00019452,2]
[368021953,1750996244164,-582.06,0.00019452,2]
[368021954,1750996244173,-1243.88,0.00019452,2]
[368021955,1750996244183,-460.0,0.00019452,2]
[368021956,1750996244192,-848.57,0.00019452,2]
[368021957,1750996244201,-415.86743555,0.00019452,2]
[368021958,1750996244211,-460.0,0.00019452,2]
[368021959,1750996244221,-460.0,0.00019452,2]
[368021960,1750996244231,-460.0,0.00019452,2]
[368021961,1750996244240,-460.0,0.00019452,2]
[368021962,1750996244250,-460.0,0.00019452,2]
[368021963,1750996244259,-460.0,0.00019452,2]
[368021964,1750996244269,-460.0,0.00019452,2]
[368021965,1750996244279,-460.0,0.00019452,2]
[368021966,1750996244288,-494.07,0.00019452,2]
[368021967,1750996244298,-564.61,0.00019452,2]
[368021968,1750996244308,-460.0,0.00019452,2]
[368021969,1750996244317,-460.0,0.00019452,2]
[368021971,1750996244327,-403.75053481,0.00019452,2]
[368021972,1750996244336,-460.0,0.00019452,2]
[368021973,1750996244345,-460.0,0.00019452,2]
[368021974,1750996244354,-460.0,0.00019452,2]
[368021975,1750996244364,-853.37,0.00019452,2]
[368021976,1750996244373,-463.060964,0.00019452,2]
[368021977,1750996244383,-402.25710202,0.00019452,2]
[368021978,1750996244392,-764.25,0.00019452,2]
[368021979,1750996244401,-460.0,0.00019452,2]
[368021980,1750996244411,-432.77632321,0.00019452,2]
[368021981,1750996244420,-460.0,0.00019452,2]
[368021982,1750996244430,-460.0,0.00019452,2]
[368021983,1750996244440,-390.81564033,0.00019452,2]
[368021984,1750996244450,-460.0,0.00019452,2]
[368021985,1750996244461,-466.02183075,0.00019452,2]
[368021986,1750996244471,-460.0,0.00019452,2]
[368021987,1750996244481,-751.98,0.00019452,2]
[368021988,1750996244490,-460.0,0.00019452,2]
[368021989,1750996244500,-2021.67,0.00019452,2]
[368021990,1750996244510,-565.92,0.00019452,2]
[368021991,1750996244520,-460.0,0.00019452,2]
[368021992,1750996244530,-2017.54,0.00019452,2]
[368021993,1750996244539,-460.0,0.00019452,2]
[368021994,1750996244549,-460.0,0.00019452,2]
[368021995,1750996244558,-555.33,0.00019452,2]
[368021996,1750996244569,-460.0,0.00019452,2]
[368021997,1750996244579,-460.0,0.00019452,2]
[368021998,1750996244589,-460.0,0.00019452,2]
[368021999,1750996244598,-460.0,0.00019452,2]
[368022000,1750996244608,-555.65,0.00019452,2]
[368022001,1750996244617,-460.0,0.00019452,2]
[368022002,1750996244627,-460.0,0.00019452,2]
[368022003,1750996244636,-460.0,0.00019452,2]
[368022004,1750996244646,-460.0,0.00019452,2]
[368022005,1750996244657,-467.91611147,0.00019452,2]
[368022006,1750996244667,-460.0,0.00019452,2]
[368022007,1750996244676,-460.0,0.00019452,2]
[368022008,1750996244686,-418.13459217,0.00019452,2]
[368022009,1750996244696,-460.0,0.00019452,2]
[368022010,1750996244705,-460.0,0.00019452,2]
[368022011,1750996244715,-460.0,0.00019452,2]
[368022012,1750996244724,-460.0,0.00019452,2]
[368022013,1750996244733,-460.0,0.00019452,2]
[368022014,1750996244743,-508.44585045,0.00019452,2]
[368022015,1750996244752,-460.0,0.00019452,2]
[368022016,1750996244761,-460.0,0.00019452,2]
[368022017,1750996244771,-460.0,0.00019452,2]
[368022018,1750996244780,-410.0,0.00019452,2]
[368022019,1750996244790,-2341.34,0.00019452,2]
[368022020,1750996244800,-460.0,0.00019452,2]
[368022021,1750996244809,-460.0,0.00019452,2]
[368022022,1750996244820,-228.05998819,0.00019452,2]
[368022023,1750996244829,-590.0,0.00019452,2]
[368022024,1750996244839,-460.0,0.00019452,2]
[368022025,1750996244848,-460.0,0.00019452,2]
[368022026,1750996244857,-771.04,0.00019452,2]
[368022027,1750996244867,-424.18931176,0.00019452,2]
[368022028,1750996244876,-460.0,0.00019452,2]
[368022029,1750996244885,-460.0,0.00019452,2]
[368022030,1750996244894,-906.39,0.00019452,2]
[368022031,1750996244903,-460.0,0.00019452,2]
[368022032,1750996244913,-460.0,0.00019452,2]